[Event "1st Easter Festival-A 2021"]
[Site "Bassano del Grappa"]
[Date "2021.04.02"]
[Round "1.7"]
[White "Colonetti, Fabio"]
[Black "Bellahcene, Bilel"]
[Result "0-1"]
[ECO "E44"]
[WhiteElo "2071"]
[BlackElo "2517"]
[Annotator "RC"]
[PlyCount "52"]
[EventDate "2021.04.01"]
[EventType "swiss"]
[EventCountry "ITA"]
[SourceTitle "playchess.com"]
[Source "ChessBase"]
[SourceQuality "1"]
[TimeControl "5400+30"]

1. d4 {[%emt 1:30:30]} Nf6 {[%emt 1:30:30]} 2. c4 {[%emt 0:00:30]} e6 {[%emt 0:00:30]} 3. Nc3 {[%emt 0:00:30]} Bb4 {[%emt 0:00:30]} 4. e3 {[%emt 0:00:30]} b6 {[%emt 0:00:30]} 5. Nge2 {[%emt 0:00:30]} Ne4 {[%emt 0:00:30]} 6. Qc2 {[%emt 0:00:30]} Bb7 {[%emt 0:00:30]} 7. a3 {[%emt 0:00:30]} Bxc3+ {[%emt 0:00:30]} 8. Nxc3 {[%emt 0:00:30]} Nxc3 {[%emt 0:00:30]} 9. Qxc3 {[%emt 0:00:30]} d6 {[%emt 0:00:30]} 10. d5 {[%emt 0:00:30]} O-O {[%emt 0:00:30]} 11. dxe6 {[%emt 0:00:30]} fxe6 {[%emt 0:00:30]} 12. Qc2 {[%emt 0:00:30]} Qh4 {[%emt 0:00:30]} 13. b4 {[%emt 0:00:30]} Nd7 {[%emt 0:00:30]} 14. Bb2 {[%emt 0:00:30]} Rf7 {[%emt 0:00:30]} 15. h3 {[%emt 0:00:30]} Raf8 {[%emt 0:00:30]} 16. g3 {[%emt 0:00:30]} Rxf2 {[%emt 0:00:30]} 17. Qxf2 {[%emt 0:00:30]} Qh6 {[%emt 0:00:30]} 18. Qd2 {[%emt 0:00:30]} Bxh1 {[%emt 0:00:30]} 19. O-O-O {[%emt 0:00:30]} Bf3 {[%emt 0:00:30]} 20. Re1 {[%emt 0:00:30]} Be4 {[%emt 0:00:30]} 21. Bg2 {[%emt 0:00:30]} Qg6 {[%emt 0:00:30]} 22. Bxe4 {[%emt 0:00:30]} Qxe4 {[%emt 0:00:30]} 23. Qd4 {[%emt 0:00:30]} Qg6 {[%emt 0:00:30]} 24. g4 {[%emt 0:00:30]} Ne5 {[%emt 0:00:30]} 25. Rd1 {[%emt 0:00:30]} Rf2 {[%emt 0:00:30]} 26. e4 {[%emt 0:00:30]} Re2 {[%emt 0:00:30]} 0-1

[Event "1st Easter Festival-A 2021"]
[Site "Bassano del Grappa"]
[Date "2021.04.02"]
[Round "1.9"]
[White "Mameli, Gianluca"]
[Black "Niemann, Hans Moke"]
[Result "0-1"]
[ECO "C28"]
[WhiteElo "2066"]
[BlackElo "2526"]
[Annotator "RC"]
[PlyCount "58"]
[EventDate "2021.04.01"]
[EventType "swiss"]
[EventCountry "ITA"]
[SourceTitle "playchess.com"]
[Source "ChessBase"]
[SourceQuality "1"]
[TimeControl "5400+30"]

1. e4 {[%emt 0:07:01]} e5 {[%emt 0:00:00]} 2. Nc3 {[%emt 0:03:54]} Nc6 {[%emt 0:00:23]} 3. Bc4 {[%emt 0:03:53]} Nf6 {[%emt 0:00:16]} 4. d3 {[%emt 0:04:51]} Na5 {[%emt 0:00:14]} 5. Nf3 {[%emt 0:00:14]} d6 {[%emt 0:00:07]} 6. O-O {[%emt 0:06:17]} c6 {[%emt 0:00:20]} 7. a3 {[%emt 0:03:09]} Nxc4 {[%emt 0:00:44]} 8. dxc4 {[%emt 0:00:05]} Be7 {[%emt 0:01:37]} 9. b4 {[%emt 0:03:48]} Be6 {[%emt 0:01:30]} 10. Qe2 {[%emt 0:06:31]} Nd7 {[%emt 0:00:31]} 11. Rd1 {[%emt 0:01:57]} O-O {[%emt 0:00:28]} 12. Bb2 {[%emt 0:07:04]} Qc7 {[%emt 0:00:40]} 13. Nd2 {[%emt 0:09:55]} Nb6 {[%emt 0:00:35]} 14. Kh1 {[%emt 0:06:06]} Rfd8 {[%emt 0:00:53]} 15. a4 {[%emt 0:09:59]} a5 {[%emt 0:00:12]} 16. b5 {[%emt 0:05:40]} Bg5 {[%emt 0:00:14]} 17. c5 {[%emt 0:05:32]} dxc5 {[%emt 0:00:09]} 18. bxc6 {[%emt 0:02:23]} bxc6 {[%emt 0:01:51]} 19. Nb3 {[%emt 0:02:30]} Nc4 {[%emt 0:00:16]} 20. Rxd8+ {[%emt 0:04:01]} Rxd8 {[%emt 0:00:09]} 21. Bc1 {[%emt 0:00:10]} Be7 {[%emt 0:00:11]} 22. Be3 {[%emt 0:01:26]} Nxe3 {[%emt 0:02:41]} 23. Qxe3 {[%emt 0:00:09]} c4 {[%emt 0:00:08]} 24. Nc1 {[%emt 0:03:04]} Qb7 {[%emt 0:01:26]} 25. N1e2 {[%emt 0:00:28]} Qb2 {[%emt 0:00:23]} 26. Qc1 {[%emt 0:00:48]} Qxc1+ {[%emt 0:00:41]} 27. Rxc1 {[%emt 0:00:06]} Rd2 {[%emt 0:00:11]} 28. Kg1 {[%emt 0:01:24]} h6 {[%emt 0:00:48]} 29. Kf1 {[%emt 0:00:15]} Ba3 {[%emt 0:00:03]} 0-1

[Event "1st Easter Festival-A 2021"]
[Site "Bassano del Grappa"]
[Date "2021.04.02"]
[Round "2.3"]
[White "Dragnev, Valentin"]
[Black "Carlo, Emanuele"]
[Result "1-0"]
[ECO "B90"]
[WhiteElo "2564"]
[BlackElo "2282"]
[Annotator "RC"]
[PlyCount "209"]
[EventDate "2021.04.01"]
[EventType "swiss"]
[EventCountry "ITA"]
[SourceTitle "playchess.com"]
[Source "ChessBase"]
[SourceQuality "1"]
[TimeControl "5400+30"]

1. e4 {[%emt 0:01:52]} c5 {[%emt 0:00:00]} 2. Nf3 {[%emt 0:00:35]} d6 {[%emt 0:00:00]} 3. d4 {[%emt 0:00:08]} cxd4 {[%emt 0:00:00]} 4. Nxd4 {[%emt 0:00:06]} Nf6 {[%emt 0:00:00]} 5. Nc3 {[%emt 0:00:03]} a6 {[%emt 0:00:05]} 6. a4 {[%emt 0:00:27]} e5 {[%emt 0:02:51]} 7. Nf3 {[%emt 0:00:07]} Be7 {[%emt 0:03:00]} 8. Bg5 {[%emt 0:00:14]} Be6 {[%emt 0:02:26]} 9. Bxf6 {[%emt 0:02:25]} Bxf6 {[%emt 0:00:19]} 10. Nd5 {[%emt 0:00:04]} Nd7 {[%emt 0:01:02]} 11. Bc4 {[%emt 0:00:11]} O-O {[%emt 0:04:29]} 12. O-O {[%emt 0:00:38]} Rc8 {[%emt 0:01:59]} 13. b3 {[%emt 0:00:39]} Be7 {[%emt 0:06:56]} 14. Qe2 {[%emt 0:10:31]} Nb6 {[%emt 0:07:43]} 15. Nxe7+ {[%emt 0:02:12]} Qxe7 {[%emt 0:00:02]} 16. Bxe6 {[%emt 0:00:12]} fxe6 {[%emt 0:01:02]} 17. Rad1 {[%emt 0:04:29]} Nd7 {[%emt 0:04:45]} 18. Rd2 {[%emt 0:03:48]} Rc6 {[%emt 0:04:24]} 19. Rfd1 {[%emt 0:01:30]} Nf6 {[%emt 0:02:48]} 20. g3 {[%emt 0:11:58]} Qc7 {[%emt 0:06:12]} 21. c4 {[%emt 0:05:19]} Rb6 {[%emt 0:04:15]} 22. Ng5 {[%emt 0:08:47]} Re8 {[%emt 0:04:26]} 23. Rd3 {[%emt 0:05:08]} h6 {[%emt 0:02:28]} 24. Nf3 {[%emt 0:00:10]} Nd7 {[%emt 0:04:14]} 25. Qa2 {[%emt 0:05:34]} a5 {[%emt 0:03:48]} 26. Re3 {[%emt 0:04:17]} Nc5 {[%emt 0:01:12]} 27. Ne1 {[%emt 0:03:19]} Qc6 {[%emt 0:05:20]} 28. Qc2 {[%emt 0:00:10]} Rc8 {[%emt 0:03:10]} 29. Rb1 {[%emt 0:02:39]} Rb4 {[%emt 0:02:12]} 30. Nd3 {[%emt 0:01:57]} Nxd3 {[%emt 0:00:45]} 31. Qxd3 {[%emt 0:00:03]} Qb6 {[%emt 0:03:36]} 32. Rd1 {[%emt 0:00:25]} Rc6 {[%emt 0:00:54]} 33. Qc3 {[%emt 0:00:27]} Qc5 {[%emt 0:01:23]} 34. Rdd3 {[%emt 0:00:17]} Rbb6 {[%emt 0:02:38]} 35. Qd2 {[%emt 0:00:34]} Rc8 {[%emt 0:03:29]} 36. Qd1 {[%emt 0:00:31]} Rf8 {[%emt 0:03:32]} 37. Qg4 {[%emt 0:00:35]} Qc8 {[%emt 0:01:37]} 38. Rd2 {[%emt 0:00:57]} Kh7 {[%emt 0:04:17]} 39. Red3 {[%emt 0:00:43]} Rf6 {[%emt 0:01:51]} 40. Qd1 {[%emt 0:01:39]} Qc5 {[%emt 0:00:32]} 41. Kg2 {[%emt 0:00:28]} Rf8 {[%emt 0:00:51]} 42. Re3 {[%emt 0:01:18]} Rf6 {[%emt 0:00:27]} 43. Rdd3 {[%emt 0:00:21]} Rf8 {[%emt 0:00:39]} 44. Qg4 {[%emt 0:00:16]} Qc8 {[%emt 0:00:49]} 45. h4 {[%emt 0:05:02]} Rf6 {[%emt 0:01:40]} 46. Rc3 {[%emt 0:01:29]} Rc6 {[%emt 0:01:13]} 47. Qd1 {[%emt 0:00:55]} Qf8 {[%emt 0:00:26]} 48. Qd2 {[%emt 0:00:30]} Qf7 {[%emt 0:00:29]} 49. Re2 {[%emt 0:00:36]} Qc7 {[%emt 0:00:26]} 50. Re1 {[%emt 0:01:54]} Rf8 {[%emt 0:00:21]} 51. Rd1 {[%emt 0:00:21]} Qb6 {[%emt 0:00:25]} 52. Rd3 {[%emt 0:00:29]} Qc5 {[%emt 0:00:37]} 53. Rf1 {[%emt 0:00:43]} Rf6 {[%emt 0:00:46]} 54. Qc2 {[%emt 0:00:34]} Kg8 {[%emt 0:00:22]} 55. Rfd1 {[%emt 0:01:50]} Rf8 {[%emt 0:00:42]} 56. R1d2 {[%emt 0:00:09]} Kh8 {[%emt 0:00:22]} 57. Qd1 {[%emt 0:00:15]} Rb6 {[%emt 0:00:37]} 58. Re3 {[%emt 0:06:00]} Rf6 {[%emt 0:00:39]} 59. Rdd3 {[%emt 0:00:19]} Kg8 {[%emt 0:00:27]} 60. Qg4 {[%emt 0:00:46]} Qc7 {[%emt 0:00:17]} 61. Qh5 {[%emt 0:00:36]} Qf7 {[%emt 0:00:50]} 62. Qe2 {[%emt 0:01:11]} Rc6 {[%emt 0:00:20]} 63. Qb2 {[%emt 0:01:38]} Qc7 {[%emt 0:00:26]} 64. Qa3 {[%emt 0:00:26]} Qb6 {[%emt 0:00:36]} 65. Re2 {[%emt 0:00:21]} Rf8 {[%emt 0:00:37]} 66. Red2 {[%emt 0:00:37]} Rd8 {[%emt 0:00:27]} 67. Rf3 {[%emt 0:02:11]} Qc7 {[%emt 0:00:25]} 68. Qc1 {[%emt 0:00:56]} Rf8 {[%emt 0:00:48]} 69. Rfd3 {[%emt 0:00:06]} Rd8 {[%emt 0:00:20]} 70. Qd1 {[%emt 0:00:05]} b6 {[%emt 0:00:51]} 71. Qg4 {[%emt 0:01:18]} Qe7 {[%emt 0:00:06]} 72. Rf3 {[%emt 0:00:55]} Rf8 {[%emt 0:00:14]} 73. Re3 {[%emt 0:01:01]} Kh7 {[%emt 0:00:32]} 74. Qh5 {[%emt 0:00:37]} Qf7 {[%emt 0:00:21]} 75. Qe2 {[%emt 0:03:08]} Qc7 {[%emt 0:00:39]} 76. Red3 {[%emt 0:00:06]} Qe7 {[%emt 0:00:30]} 77. Qe3 {[%emt 0:00:15]} Kg8 {[%emt 0:00:30]} 78. Qe1 {[%emt 0:00:23]} Qc7 {[%emt 0:00:15]} 79. Qd1 {[%emt 0:00:13]} Rd8 {[%emt 0:00:20]} 80. Qg4 {[%emt 0:01:06]} Qe7 {[%emt 0:00:09]} 81. Rd1 {[%emt 0:00:02]} Rf8 {[%emt 0:00:54]} 82. Rf1 {[%emt 0:00:09]} Rf6 {[%emt 0:00:55]} 83. Qd1 {[%emt 0:00:23]} Rf8 {[%emt 0:00:36]} 84. Qd2 {[%emt 0:00:07]} Kh7 {[%emt 0:00:51]} 85. Rd1 {[%emt 0:02:06]} Rd8 {[%emt 0:00:19]} 86. f3 {[%emt 0:00:29]} Kg8 {[%emt 0:00:20]} 87. Qc2 {[%emt 0:00:22]} Qc7 {[%emt 0:00:50]} 88. Qc1 {[%emt 0:00:31]} Qe7 {[%emt 0:00:12]} 89. Qa3 {[%emt 0:01:06]} Qc7 {[%emt 0:00:11]} 90. Kh3 {[%emt 0:00:32]} Qe7 {[%emt 0:00:37]} 91. Qa2 {[%emt 0:00:12]} Rf8 {[%emt 0:00:25]} 92. Qd2 {[%emt 0:00:07]} Rd8 {[%emt 0:00:44]} 93. Rg1 {[%emt 0:00:05]} Rf8 {[%emt 0:00:33]} 94. Qe3 {[%emt 0:00:28]} Qf7 {[%emt 0:00:48]} 95. Rgd1 {[%emt 0:01:02]} Qe7 {[%emt 0:00:20]} 96. R3d2 {[%emt 0:00:39]} Kh7 {[%emt 0:00:57]} 97. f4 {[%emt 0:01:45]} exf4 {[%emt 0:00:27]} 98. gxf4 {[%emt 0:00:01]} Rc5 {[%emt 0:00:54]} 99. Rxd6 {[%emt 0:00:45]} Rh5 {[%emt 0:00:18]} 100. Qg3 {[%emt 0:00:07]} Qf6 {[%emt 0:00:31]} 101. f5 {[%emt 0:00:43]} g5 {[%emt 0:00:31]} 102. Rxe6 {[%emt 0:01:13]} Qb2 {[%emt 0:00:39]} 103. Rd7+ {[%emt 0:00:07]} Kg8 {[%emt 0:00:31]} 104. Rxh6 {[%emt 0:00:14]} Rxh4+ {[%emt 0:00:25]} 105. Rxh4 {[%emt 0:02:11]} 1-0

[Event "1st Easter Festival-A 2021"]
[Site "Bassano del Grappa"]
[Date "2021.04.02"]
[Round "3.2"]
[White "Checa, Nicolas"]
[Black "Niemann, Hans Moke"]
[Result "0-1"]
[ECO "D38"]
[WhiteElo "2546"]
[BlackElo "2526"]
[Annotator "ChessBase"]
[PlyCount "58"]
[EventDate "2021.04.01"]
[EventType "swiss"]
[EventCountry "ITA"]
[SourceTitle "playchess.com"]
[Source "ChessBase"]
[SourceQuality "1"]
[TimeControl "5400+30"]

1. d4 {[%emt 0:08:04]} Nf6 {[%emt 0:00:00]} 2. c4 {[%emt 0:00:07]} e6 {[%emt 0:00:00]} 3. Nf3 {[%emt 0:00:08]} d5 {[%emt 0:00:58]} 4. Nc3 {[%emt 0:02:55]} Bb4 {[%emt 0:01:32]} 5. cxd5 {[%emt 0:00:55]} exd5 {[%emt 0:00:17]} 6. Bg5 {[%emt 0:00:06]} h6 {[%emt 0:00:23]} 7. Bh4 {[%emt 0:00:09]} O-O {[%emt 0:00:15]} 8. e3 {[%emt 0:04:37]} Bf5 {[%emt 0:03:36]} 9. Bd3 {[%emt 0:05:32]} Bxd3 {[%emt 0:00:43]} 10. Qxd3 {[%emt 0:00:02]} c6 {[%emt 0:00:58]} 11. a3 {[%emt 0:01:25]} Bd6 {[%emt 0:04:58]} 12. g4 {[%emt 0:03:38]} Nbd7 {[%emt 0:17:36]} 13. g5 {[%emt 0:05:11]} hxg5 {[%emt 0:00:09]} 14. Nxg5 {[%emt 0:00:09]} c5 {[%emt 0:09:12]} 15. Nh7 {[%emt 0:12:03]} cxd4 {[%emt 0:01:48]} 16. Nxf6+ {[%emt 0:06:36]} Nxf6 {[%emt 0:00:16]} 17. Qxd4 {[%emt 0:00:10]} Be7 {[%emt 0:00:22]} 18. Rg1 {[%emt 0:00:08]} g6 {[%emt 0:01:14]} 19. O-O-O {[%emt 0:10:48]} Rc8 {[%emt 0:00:27]} 20. Qd3 {[%emt 0:01:25]} Ne4 {[%emt 0:03:18]} 21. Bxe7 {[%emt 0:08:55]} Qxe7 {[%emt 0:01:12]} 22. Kb1 {[%emt 0:00:01]} Rxc3 {[%emt 0:24:59]} 23. bxc3 {[%emt 0:01:03]} Rc8 {[%emt 0:00:18]} 24. Rc1 {[%emt 0:02:14]} Qxa3 {[%emt 0:00:30]} 25. Qxd5 {[%emt 0:04:24]} Rc6 {[%emt 0:00:36]} 26. f3 {[%emt 0:05:10]} Rb6+ {[%emt 0:01:58]} 27. Kc2 {[%emt 0:00:02]} Qxc3+ {[%emt 0:00:35]} 28. Kd1 {[%emt 0:00:02]} Nf2+ {[%emt 0:00:11]} 29. Ke2 {[%emt 0:00:11]} Rb2+ {[%emt 0:00:05]} 0-1

[Event "1st Easter Festival-A 2021"]
[Site "Bassano del Grappa"]
[Date "2021.04.02"]
[Round "3.4"]
[White "Gilevych, Artem"]
[Black "Basso, Pier Luigi"]
[Result "0-1"]
[ECO "D45"]
[WhiteElo "2408"]
[BlackElo "2521"]
[Annotator "ChessBase"]
[PlyCount "49"]
[EventDate "2021.04.01"]
[EventType "swiss"]
[EventCountry "ITA"]
[SourceTitle "playchess.com"]
[Source "ChessBase"]
[SourceQuality "1"]
[TimeControl "5400+30"]

1. d4 {[%emt 0:00:00]} d5 {[%emt 0:07:48]} 2. c4 {[%emt 0:00:00]} c6 {[%emt 0:00:07]} 3. Nc3 {[%emt 0:00:02]} Nf6 {[%emt 0:00:07]} 4. e3 {[%emt 1:31:58]} e6 {[%emt 0:04:49]} 5. Nf3 {[%emt 0:00:00]} Nbd7 {[%emt 0:00:03]} 6. Qc2 {[%emt 0:00:00]} b6 {[%emt 0:00:05]} 7. Bd3 {[%emt 0:00:00]} Bb7 {[%emt 0:00:06]} 8. O-O {[%emt 0:00:00]} Be7 {[%emt 0:00:18]} 9. b3 {[%emt 0:00:00]} dxc4 {[%emt 0:00:05]} 10. bxc4 {[%emt 0:00:00]} c5 {[%emt 0:00:05]} 11. d5 {[%emt 0:00:00]} exd5 {[%emt 0:00:06]} 12. cxd5 {[%emt 0:00:00]} Nxd5 {[%emt 0:00:11]} 13. Nxd5 {[%emt 0:00:00]} Bxd5 {[%emt 0:00:07]} 14. Rd1 {[%emt 0:00:00]} Be6 {[%emt 0:01:32]} 15. Bb5 {[%emt 0:00:00]} O-O {[%emt 0:28:58]} 16. Bb2 {[%emt 0:00:00]} Bf6 {[%emt 0:00:36]} 17. Be5 {[%emt 0:00:00]} Nxe5 {[%emt 0:05:22]} 18. Rxd8 {[%emt 0:00:00]} Nxf3+ {[%emt 0:00:05]} 19. gxf3 {[%emt 0:00:00]} Rfxd8 {[%emt 0:00:04]} 20. Rc1 {[%emt 0:00:00]} c4 {[%emt 0:04:16]} 21. Bxc4 {[%emt 0:00:00]} Rac8 {[%emt 0:00:27]} 22. Qe4 {[%emt 0:00:00]} b5 {[%emt 0:05:15]} 23. Qxe6 {[%emt 0:00:00]} Rxc4 {[%emt 0:00:12]} 24. Qxc4 {[%emt 0:00:00]} bxc4 {[%emt 0:00:10]} 25. Rxc4 {[%emt 0:00:00]} 0-1

[Event "1st Easter Festival-A 2021"]
[Site "Bassano del Grappa"]
[Date "2021.04.02"]
[Round "3.5"]
[White "Bjerre, Jonas Buhl"]
[Black "Maerevoet, Sim"]
[Result "1-0"]
[ECO "E18"]
[WhiteElo "2549"]
[BlackElo "2381"]
[Annotator "ChessBase"]
[PlyCount "77"]
[EventDate "2021.04.01"]
[EventType "swiss"]
[EventCountry "ITA"]
[SourceTitle "playchess.com"]
[Source "ChessBase"]
[SourceQuality "1"]
[TimeControl "5400+30"]

1. d4 {[%emt 0:01:29]} Nf6 {[%emt 0:00:00]} 2. c4 {[%emt 0:00:08]} e6 {[%emt 0:00:00]} 3. Nf3 {[%emt 0:00:06]} b6 {[%emt 0:00:00]} 4. g3 {[%emt 0:00:22]} Bb7 {[%emt 0:00:04]} 5. Bg2 {[%emt 0:00:31]} Be7 {[%emt 0:00:09]} 6. O-O {[%emt 0:00:54]} O-O {[%emt 0:00:06]} 7. Nc3 {[%emt 0:01:50]} Ne4 {[%emt 0:00:17]} 8. Bd2 {[%emt 0:00:55]} d6 {[%emt 0:01:07]} 9. Qc2 {[%emt 0:04:48]} Nxd2 {[%emt 0:02:34]} 10. Nxd2 {[%emt 0:03:51]} Bxg2 {[%emt 0:01:29]} 11. Kxg2 {[%emt 0:00:03]} Nd7 {[%emt 0:08:16]} 12. Rad1 {[%emt 0:01:38]} Qc8 {[%emt 0:04:55]} 13. f4 {[%emt 0:09:45]} a6 {[%emt 0:17:08]} 14. Nf3 {[%emt 0:06:05]} b5 {[%emt 0:03:14]} 15. b3 {[%emt 0:05:49]} Nb6 {[%emt 0:07:56]} 16. Qd3 {[%emt 0:06:59]} bxc4 {[%emt 0:06:12]} 17. bxc4 {[%emt 0:00:11]} a5 {[%emt 0:00:07]} 18. d5 {[%emt 0:05:25]} c6 {[%emt 0:06:28]} 19. Rb1 {[%emt 0:08:24]} Nd7 {[%emt 0:09:03]} 20. dxe6 {[%emt 0:03:35]} fxe6 {[%emt 0:00:50]} 21. Ne4 {[%emt 0:02:44]} d5 {[%emt 0:00:40]} 22. Neg5 {[%emt 0:01:43]} Bxg5 {[%emt 0:00:18]} 23. Nxg5 {[%emt 0:00:31]} Nf6 {[%emt 0:00:07]} 24. Rfc1 {[%emt 0:02:47]} h6 {[%emt 0:02:20]} 25. Nf3 {[%emt 0:01:21]} Qa6 {[%emt 0:05:09]} 26. Ne5 {[%emt 0:04:12]} Rab8 {[%emt 0:02:45]} 27. c5 {[%emt 0:03:54]} Qa8 {[%emt 0:02:04]} 28. Rb6 {[%emt 0:03:35]} Rxb6 {[%emt 0:02:02]} 29. cxb6 {[%emt 0:00:04]} Rc8 {[%emt 0:00:12]} 30. Qa3 {[%emt 0:04:39]} Qa6 {[%emt 0:02:34]} 31. Qb2 {[%emt 0:02:10]} Qb7 {[%emt 0:00:30]} 32. Rc5 {[%emt 0:01:09]} d4 {[%emt 0:02:52]} 33. Nc4 {[%emt 0:04:47]} Nd7 {[%emt 0:01:13]} 34. Nd6 {[%emt 0:01:24]} Qa6 {[%emt 0:03:43]} 35. Nxc8 {[%emt 0:05:07]} Nxc5 {[%emt 0:00:06]} 36. Ne7+ {[%emt 0:00:39]} Kf8 {[%emt 0:02:18]} 37. Nxc6 {[%emt 0:01:21]} d3 {[%emt 0:02:46]} 38. Qd4 {[%emt 0:01:56]} d2 {[%emt 0:02:10]} 39. Qd8+ {[%emt 0:00:56]} 1-0

[Event "1st Easter Festival-A 2021"]
[Site "Bassano del Grappa"]
[Date "2021.04.02"]
[Round "3.7"]
[White "Dardha, Daniel"]
[Black "Palozza, Christian"]
[Result "1-0"]
[ECO "D43"]
[WhiteElo "2516"]
[BlackElo "2263"]
[Annotator "ChessBase"]
[PlyCount "79"]
[EventDate "2021.04.01"]
[EventType "swiss"]
[EventCountry "ITA"]
[SourceTitle "playchess.com"]
[Source "ChessBase"]
[SourceQuality "1"]
[TimeControl "5400+30"]

1. Nf3 {[%emt 0:07:22]} Nf6 {[%emt 0:00:00]} 2. c4 {[%emt 0:00:05]} e6 {[%emt 0:00:00]} 3. Nc3 {[%emt 0:00:07]} d5 {[%emt 0:00:00]} 4. d4 {[%emt 0:00:08]} dxc4 {[%emt 0:00:00]} 5. Qa4+ {[%emt 0:03:37]} c6 {[%emt 0:01:38]} 6. Qxc4 {[%emt 0:00:52]} b5 {[%emt 0:00:34]} 7. Qd3 {[%emt 0:02:09]} a6 {[%emt 0:03:35]} 8. e4 {[%emt 0:09:26]} Bb7 {[%emt 0:08:16]} 9. Bg5 {[%emt 0:19:12]} h6 {[%emt 0:08:01]} 10. Bh4 {[%emt 0:00:36]} g5 {[%emt 0:15:54]} 11. Bg3 {[%emt 0:00:19]} Nh5 {[%emt 0:00:23]} 12. Be5 {[%emt 0:05:57]} Rg8 {[%emt 0:03:36]} 13. h3 {[%emt 0:00:40]} Nd7 {[%emt 0:13:39]} 14. Bh2 {[%emt 0:00:41]} Nf4 {[%emt 0:01:10]} 15. Qd2 {[%emt 0:04:54]} c5 {[%emt 0:04:07]} 16. d5 {[%emt 0:06:10]} e5 {[%emt 0:01:00]} 17. b3 {[%emt 0:09:09]} c4 {[%emt 0:03:45]} 18. g3 {[%emt 0:04:46]} Bb4 {[%emt 0:12:00]} 19. a3 {[%emt 0:03:43]} Qa5 {[%emt 0:01:28]} 20. axb4 {[%emt 0:00:22]} Qxa1+ {[%emt 0:00:12]} 21. Nd1 {[%emt 0:00:05]} cxb3 {[%emt 0:04:57]} 22. gxf4 {[%emt 0:00:55]} Rc8 {[%emt 0:00:16]} 23. Bd3 {[%emt 0:02:00]} gxf4 {[%emt 0:03:12]} 24. Ke2 {[%emt 0:03:57]} Rc1 {[%emt 0:04:19]} 25. Re1 {[%emt 0:00:16]} Ke7 {[%emt 0:04:59]} 26. Nh4 {[%emt 0:05:51]} Nb6 {[%emt 0:01:40]} 27. Bxf4 {[%emt 0:03:34]} exf4 {[%emt 0:00:57]} 28. Nf5+ {[%emt 0:00:02]} Kd8 {[%emt 0:02:25]} 29. Qxf4 {[%emt 0:00:03]} Nd7 {[%emt 0:01:17]} 30. Nd6 {[%emt 0:02:53]} Bxd5 {[%emt 0:00:15]} 31. exd5 {[%emt 0:02:35]} Qe5+ {[%emt 0:00:06]} 32. Qe3 {[%emt 0:00:38]} Qxe3+ {[%emt 0:01:45]} 33. Nxe3 {[%emt 0:00:03]} Rxe1+ {[%emt 0:00:18]} 34. Kxe1 {[%emt 0:00:01]} Ne5 {[%emt 0:00:26]} 35. Bf5 {[%emt 0:02:25]} Nf3+ {[%emt 0:00:39]} 36. Ke2 {[%emt 0:00:22]} Nd4+ {[%emt 0:00:15]} 37. Kd3 {[%emt 0:00:26]} Rg5 {[%emt 0:00:52]} 38. Nxf7+ {[%emt 0:00:28]} Ke7 {[%emt 0:00:28]} 39. Nxg5 {[%emt 0:00:08]} Nxf5 {[%emt 0:00:15]} 40. Nxf5+ {[%emt 0:00:06]} 1-0

[Event "1st Easter Festival-A 2021"]
[Site "Bassano del Grappa"]
[Date "2021.04.02"]
[Round "3.8"]
[White "Sonis, Francesco"]
[Black "Fischer, Daniel"]
[Result "1/2-1/2"]
[ECO "A57"]
[WhiteElo "2477"]
[BlackElo "2276"]
[Annotator "ChessBase"]
[PlyCount "79"]
[EventDate "2021.04.01"]
[EventType "swiss"]
[EventCountry "ITA"]
[SourceTitle "playchess.com"]
[Source "ChessBase"]
[SourceQuality "1"]
[TimeControl "5400+30"]

1. d4 {[%emt 0:00:52]} Nf6 {[%emt 0:00:00]} 2. c4 {[%emt 0:00:07]} c5 {[%emt 0:00:05]} 3. d5 {[%emt 0:00:10]} b5 {[%emt 0:00:13]} 4. cxb5 {[%emt 0:00:09]} a6 {[%emt 0:00:07]} 5. e3 {[%emt 0:00:05]} Bb7 {[%emt 0:00:29]} 6. Nc3 {[%emt 0:00:11]} Qa5 {[%emt 0:00:56]} 7. Bd2 {[%emt 0:00:30]} axb5 {[%emt 0:01:01]} 8. Bxb5 {[%emt 0:00:53]} Qb6 {[%emt 0:00:41]} 9. a4 {[%emt 0:00:15]} Nxd5 {[%emt 0:00:38]} 10. Nf3 {[%emt 0:00:06]} e6 {[%emt 0:00:22]} 11. O-O {[%emt 0:00:13]} Be7 {[%emt 0:00:30]} 12. e4 {[%emt 0:00:09]} Nb4 {[%emt 1:30:58]} 13. Ne5 {[%emt 0:18:43]} O-O {[%emt 0:00:00]} 14. Nc4 {[%emt 0:06:35]} Qc7 {[%emt 0:00:00]} 15. e5 {[%emt 0:00:54]} N8c6 {[%emt 0:00:00]} 16. Bf4 {[%emt 0:04:02]} Nd4 {[%emt 0:00:00]} 17. Qg4 {[%emt 0:09:57]} Qd8 {[%emt 0:00:00]} 18. Nd6 {[%emt 0:07:40]} Bxd6 {[%emt 0:00:00]} 19. exd6 {[%emt 0:00:05]} f6 {[%emt 0:00:00]} 20. Bc4 {[%emt 0:08:02]} Kh8 {[%emt 0:00:00]} 21. Be3 {[%emt 0:00:54]} Qb6 {[%emt 0:00:00]} 22. Bxd4 {[%emt 0:05:16]} cxd4 {[%emt 0:00:00]} 23. Nb5 {[%emt 0:00:03]} f5 {[%emt 0:00:00]} 24. Qxd4 {[%emt 0:00:23]} Qc6 {[%emt 0:00:00]} 25. f3 {[%emt 0:00:03]} Nc2 {[%emt 0:00:00]} 26. Qc3 {[%emt 0:01:11]} Nxa1 {[%emt 0:00:00]} 27. Rxa1 {[%emt 0:00:03]} Ba6 {[%emt 0:00:00]} 28. Qd4 {[%emt 0:02:02]} e5 {[%emt 0:00:00]} 29. Qd3 {[%emt 0:01:31]} Qc5+ {[%emt 0:00:00]} 30. Kh1 {[%emt 0:00:35]} e4 {[%emt 0:00:00]} 31. fxe4 {[%emt 0:00:53]} fxe4 {[%emt 0:00:00]} 32. Qe2 {[%emt 0:00:02]} Rae8 {[%emt 0:00:00]} 33. b3 {[%emt 0:02:13]} Bxb5 {[%emt 0:01:19]} 34. Bxb5 {[%emt 0:00:06]} Qxd6 {[%emt 0:00:47]} 35. Rd1 {[%emt 0:00:16]} Qc5 {[%emt 0:01:47]} 36. h3 {[%emt 0:02:31]} Re7 {[%emt 0:01:17]} 37. Bxd7 {[%emt 0:01:09]} Rd8 {[%emt 0:00:57]} 38. Bb5 {[%emt 0:00:05]} Rd5 {[%emt 0:06:53]} 39. Rd3 Rxd3 {[%emt 0:00:00]} 40. Qd1 {[%emt 0:00:31]} 1/2-1/2